bitfinex/quotes_SOLUSD_20250721
["timestamp","ask_amount","ask_price","bid_price","bid_amount"]
[1753110096972,11.22351431,195.75,195.68,10.56351431]
[1753110097132,16.53593133,195.75,195.68,15.87593133]
[1753110097658,53.87355734,195.82,195.68,15.87593133]
[1753110097659,16.53593133,195.74,195.68,15.87593133]
[1753110097837,16.53593133,195.74,195.66,38.54]
[1753110098157,16.53593133,195.74,195.68,15.87593133]
[1753110098356,5.10620915,195.84,195.72,15.87593133]
[1753110098537,0.66,195.78,195.72,15.87593133]
[1753110098857,0.66,195.78,195.71,15.87593133]
[1753110099061,16.53593133,195.78,195.69,26.0]
[1753110099235,0.66,195.78,195.69,26.0]
[1753110099564,0.66,195.78,195.72,15.87593133]
[1753110099734,15.87593133,195.77,195.69,26.0]
[1753110099951,0.66,195.77,195.71,15.87593133]
[1753110100357,16.53593133,195.77,195.69,26.0]
[1753110100554,16.53593133,195.77,195.7,15.87593133]
[1753110101296,0.66,195.77,195.7,15.87593133]
[1753110101451,0.66,195.77,195.73,15.87593133]
[1753110101649,15.7337,195.95,195.76,41.87593133]
[1753110101979,15.87593133,195.84,195.76,80.31593133]
[1753110102273,15.87593133,195.84,195.78,15.87593133]
[1753110103074,0.66,195.85,195.78,15.87593133]
[1753110103276,0.66,195.86,195.79,0.51075131]
[1753110103576,15.87593133,195.83,195.76,64.42]
[1753110103875,15.87593133,195.83,195.74,0.51088178]
[1753110103876,16.53593133,195.83,195.78,15.87593133]
[1753110104070,16.53593133,195.83,195.79,15.87593133]
[1753110104071,0.66,195.83,195.79,15.87593133]
[1753110104270,15.87593133,195.85,195.8,15.87593133]
[1753110104587,20.98193161,195.85,195.79,15.87593133]
[1753110104797,0.66,195.84,195.78,15.87593133]
[1753110104970,0.66,195.84,195.76,26.0]
[1753110104971,15.87593133,195.83,195.76,26.0]
[1753110105287,0.66,195.84,195.77,0.43]
[1753110105447,15.87593133,195.82,195.77,15.87593133]
[1753110105652,0.66,195.81,195.76,15.87593133]
[1753110105882,26.387885,196.0,195.8,15.87593133]
[1753110106175,26.387885,196.0,195.85,15.87593133]
[1753110106176,15.87593133,195.91,195.85,15.87593133]
[1753110106476,5.10464522,195.9,195.85,15.87593133]
[1753110106787,0.66,195.89,195.81,65.31069914]
[1753110106953,0.66,195.89,195.81,64.8]
[1753110107155,0.06,195.87,195.81,26.0]
[1753110107354,0.06,195.87,195.84,15.87593133]
[1753110107578,0.06,195.87,195.8,38.8]
[1753110107579,0.06,195.87,195.83,26.0]
[1753110108004,0.06,195.87,195.8,38.8]
[1753110108005,16.59593133,195.87,195.8,38.8]
[1753110108209,0.72,195.87,195.82,15.87593133]
[1753110108509,5.82561104,195.87,195.83,15.87593133]
[1753110108714,5.82561104,195.87,195.83,26.51064698]
[1753110108715,0.06,195.87,195.83,26.51064698]
[1753110108890,0.06,195.87,195.86,15.87593133]
[1753110109204,0.06,195.87,195.86,54.63593133]
[1753110110407,0.06,195.87,195.86,15.87593133]
[1753110110801,0.06,195.87,195.86,16.30593133]
[1753110111191,0.06,195.87,195.86,26.43]
[1753110111501,0.06,195.87,195.86,42.30593133]
[1753110112109,0.06,195.87,195.86,26.43]
[1753110112319,0.06,195.87,195.86,42.30593133]
[1753110112501,0.9457,195.95,195.86,42.30593133]
[1753110112502,5.10386362,195.93,195.86,52.86583133]
[1753110112807,10.0,196.04,195.92,15.87593133]
[1753110112808,31.48992727,196.0,195.92,15.87593133]
[1753110112983,31.48992727,196.0,195.88,4.8843]
[1753110112984,31.48992727,196.0,195.96,41.87593133]
[1753110113181,44.24502931,196.0,195.93,0.51038636]
[1753110113407,31.48992727,196.0,195.97,15.87593133]
[1753110113610,31.48992727,196.0,195.98,15.87593133]
[1753110113787,31.48992727,196.0,195.98,14.87593133]
[1753110114202,31.48992727,196.0,195.97,15.87593133]
[1753110114403,31.48992727,196.0,195.94,0.51036031]
[1753110114612,32.14992727,196.0,195.94,0.51036031]
[1753110114811,32.14992727,196.0,195.96,15.87593133]
[1753110115022,31.48992727,196.0,195.96,15.87593133]
[1753110115694,31.48992727,196.0,195.95,15.87593133]
[1753110115890,31.48992727,196.0,195.94,0.51036031]
[1753110116125,31.48992727,196.0,195.95,0.51033426]
[1753110116126,60.78096064,196.0,195.95,0.51033426]
[1753110116318,16.53593133,195.99,195.93,15.87593133]
[1753110116616,16.53593133,195.99,195.94,0.51036031]
[1753110116617,5.10256148,195.98,195.94,0.51036031]
[1753110117027,21.63849281,195.98,195.94,0.51036031]
[1753110117325,0.66,195.97,195.93,0.51038636]
[1753110117494,0.66,195.97,195.92,0.51041241]
[1753110117495,15.87593133,195.96,195.92,0.51041241]
[1753110117698,17.85896519,195.98,195.86,16.09557692]
[1753110117699,15.87593133,195.93,195.87,0.5105427]
[1753110117916,15.87593133,195.93,195.87,39.4505427]
[1753110118219,15.87593133,195.9,195.87,0.5105427]
[1753110118411,5.10490581,195.89,195.87,0.5105427]
[1753110118615,15.87593133,195.92,195.87,0.5105427]
[1753110118807,15.87593133,195.93,195.87,16.38647403]
[1753110119305,0.66,195.95,195.88,15.87593133]
[1753110119506,15.87593133,195.9,195.86,0.51056877]
[1753110119704,16.53593133,195.89,195.82,16.38660439]
[1753110119904,15.87593133,195.88,195.82,16.38660439]
[1753110120114,16.78468397,195.98,195.82,16.38660439]
[1753110120115,0.66,195.93,195.84,15.87593133]
[1753110120325,15.87593133,195.92,195.86,15.87593133]
[1753110120526,17.85805397,195.99,195.86,15.87593133]
[1753110120527,15.87593133,195.94,195.88,15.87593133]
[1753110120704,15.87593133,195.94,195.89,0.51049058]
[1753110121015,5.10308566,195.96,195.87,26.0]
[1753110121016,15.87593133,195.91,195.87,26.0]
[1753110121208,0.69,195.9,195.89,26.0]
[1753110121422,0.69,195.9,195.82,5.61724614]
[1753110121423,16.56593133,195.9,195.82,0.51067306]
[1753110121620,15.87593133,195.86,195.82,0.51067306]
[1753110121799,0.69,195.89,195.82,0.51067306]
[1753110122002,15.87593133,195.87,195.82,0.51067306]
[1753110122522,0.69,195.86,195.79,16.38668264]
[1753110122724,15.87593133,195.85,195.82,26.0]
[1753110123039,15.87593133,195.86,195.82,26.0]
[1753110123335,38.96,195.93,195.83,0.51064698]
[1753110123513,15.87593133,195.84,195.77,39.0]
[1753110123833,16.78468397,195.92,195.8,26.0]
[1753110124139,15.87593133,195.84,195.8,26.0]
[1753110124423,15.87593133,195.86,195.83,26.0]
[1753110124732,15.87593133,195.87,195.84,26.0]
[1753110125030,15.87593133,195.85,195.81,26.95571908]
[1753110125226,15.87593133,195.82,195.81,0.95571908]
[1753110125527,16.56593133,195.82,195.81,0.95571908]
[1753110125731,0.69,195.82,195.81,0.95571908]
[1753110126035,0.69,195.82,195.81,0.23571908]
[1753110126262,0.69,195.82,195.74,15.87593133]
[1753110126407,15.87593133,195.8,195.74,15.87593133]
[1753110126727,0.69,195.82,195.73,26.0]
[1753110126728,15.87593133,195.79,195.73,15.87593133]
[1753110126904,15.87593133,195.76,195.7,16.38691753]
[1753110127109,0.69,195.75,195.66,16.38702199]
[1753110127329,0.69,195.75,195.68,15.87593133]
[1753110127628,15.87593133,195.73,195.68,26.0]
[1753110127837,16.56593133,195.73,195.68,26.0]
[1753110128017,15.87593133,195.72,195.66,22.15792509]
[1753110128206,15.87593133,195.71,195.66,5.62188025]
[1753110128526,15.87593133,195.72,195.66,21.49781158]
[1753110128732,15.87593133,195.74,195.68,15.87593133]
[1753110129031,0.69,195.77,195.64,10.6672]
[1753110129032,0.69,195.73,195.65,5.11115915]
[1753110129539,0.69,195.73,195.64,0.51114291]
[1753110129735,15.87593133,195.69,195.63,20.98757064]
[1753110129921,15.87593133,195.71,195.65,16.90858578]
[1753110130134,0.69,195.73,195.65,16.90858578]
[1753110130135,15.87593133,195.7,195.65,1.03265445]
[1753110130441,38.98,195.73,195.65,1.03265445]
[1753110130442,0.69,195.69,195.65,1.03265445]
[1753110130633,39.67,195.68,195.65,1.03265445]
[1753110130946,26.0,195.63,195.51,0.51148278]
[1753110131149,26.0,195.63,195.48,0.51156128]
[1753110131150,15.87593133,195.52,195.48,0.51156128]
[1753110131358,15.87593133,195.49,195.44,0.66]
[1753110131529,39.24,195.56,195.45,17.04757113]
[1753110131727,15.87593133,195.5,195.45,1.1716398]
[1753110132051,39.24,195.58,195.47,41.87593133]
[1753110132228,15.87593133,195.53,195.48,0.51156128]
[1753110132433,39.24,195.58,195.47,15.87593133]
[1753110132434,15.87593133,195.52,195.47,15.87593133]
[1753110132753,15.87593133,195.52,195.47,17.04751878]
[1753110132965,5.11352014,195.56,195.47,17.04751878]
[1753110133143,15.87593133,195.52,195.47,0.51158745]
[1753110133331,15.87593133,195.52,195.48,0.66]
[1753110133533,15.87593133,195.52,195.49,0.66]
[1753110133829,15.87593133,195.55,195.49,15.87593133]
[1753110134038,15.87593133,195.56,195.51,15.87593133]
[1753110134248,0.69,195.61,195.52,0.66]
[1753110134462,0.69,195.64,195.58,26.0]
[1753110134630,15.87593133,195.63,195.58,15.87593133]
[1753110134828,15.87593133,195.63,195.59,0.66]
[1753110135127,15.87593133,195.63,195.58,5.62426277]
[1753110135349,15.87593133,195.63,195.58,16.38723105]
[1753110135555,5.80088184,195.67,195.61,41.87593133]
[1753110135556,15.87593133,195.67,195.61,41.87593133]
[1753110135856,15.87593133,195.66,195.61,42.38715263]
[1753110136754,15.87593133,195.65,195.63,26.0]
[1753110137275,12.77269708,195.73,195.63,26.0]
[1753110137425,15.87593133,195.69,195.63,42.53593133]
[1753110137630,0.69,195.77,195.66,15.87593133]
[1753110137852,15.87593133,195.75,195.69,15.87593133]
[1753110138057,0.69,195.77,195.69,15.87593133]
[1753110138058,15.87593133,195.77,195.71,15.87593133]
[1753110138267,15.87593133,195.79,195.74,15.87593133]
[1753110138459,5.10673513,195.82,195.75,0.51085568]
[1753110138460,15.87593133,195.8,195.75,0.51085568]
[1753110138658,15.87593133,195.8,195.75,1.17085568]
[1753110139070,15.87593133,195.8,195.75,0.51085568]
[1753110139239,15.87593133,195.79,195.73,42.38683921]
[1753110139434,15.87593133,195.78,195.73,42.38683921]
[1753110139842,15.87593133,195.77,195.73,26.0]
[1753110140057,15.87593133,195.75,195.73,26.0]
[1753110140369,16.78468397,195.83,195.73,26.0]
[1753110140370,26.387885,196.0,195.75,30.2853]
[1753110140681,0.69,195.99,195.89,26.0]
[1753110140966,16.56593133,195.99,195.91,5.10434288]
[1753110141135,26.387885,196.0,195.95,15.87593133]
[1753110141446,26.387885,196.0,195.88,12.76276999]
[1753110141447,40.33,195.99,195.86,0.51056877]
[1753110141645,15.87593133,195.93,195.82,0.51067306]
[1753110141947,15.87593133,195.91,195.82,0.51067306]
[1753110142252,15.87593133,195.9,195.83,15.87593133]
[1753110142551,15.87593133,195.9,195.84,0.51062091]
[1753110142552,15.87593133,195.89,195.84,0.51062091]
[1753110142942,16.56593133,195.88,195.84,0.51062091]
[1753110143270,0.69,195.88,195.84,0.51062091]
[1753110143439,16.56593133,195.88,195.84,0.51062091]
[1753110143640,16.56593133,195.88,195.82,0.51067306]
[1753110143840,16.56593133,195.88,195.82,5.61734428]
[1753110144163,15.87593133,195.89,195.82,5.61734428]
[1753110144353,15.87593133,195.89,195.83,15.87593133]
[1753110144547,15.87593133,195.89,195.84,0.51062091]
[1753110145678,5.10452197,195.91,195.84,0.51062091]
[1753110145679,5.10452197,195.91,195.84,16.38655224]
[1753110145884,5.10452197,195.91,195.84,0.51062091]
[1753110146073,15.87593133,195.88,195.84,0.51062091]
[1753110146401,16.56593133,195.88,195.82,0.51067306]
[1753110146692,0.69,195.88,195.82,0.51067306]
[1753110146993,15.87593133,195.83,195.82,0.51067306]
[1753110147177,0.69,195.86,195.8,16.78468397]
[1753110147376,15.87593133,195.84,195.81,0.51069914]
[1753110147585,0.69,195.83,195.81,0.51069914]
[1753110147785,0.69,195.88,195.81,0.51069914]
[1753110148286,15.87593133,195.83,195.81,0.51069914]
[1753110148494,0.69,195.86,195.81,0.51069914]
[1753110148700,52.53982037,195.93,195.81,5.61755798]
[1753110148701,15.87593133,195.85,195.81,5.61755798]
[1753110148985,0.69,195.9,195.81,5.61755798]
[1753110148986,15.87593133,195.84,195.81,0.51069914]
[1753110149170,5.10412413,195.92,195.81,0.51069914]
[1753110149171,15.87593133,195.83,195.81,0.51069914]
[1753110149688,15.87593133,195.83,195.81,5.61768118]
[1753110150081,15.87593133,195.83,195.81,0.51069914]
[1753110150378,12.76031033,195.92,195.82,43.44468397]
[1753110150379,0.69,195.92,195.82,43.44468397]
[1753110150592,15.87593133,195.9,195.84,15.87593133]
[1753110150794,15.87593133,195.86,195.83,0.51064698]
[1753110151095,5.79415458,195.92,195.8,39.74]
[1753110151096,15.87593133,195.85,195.81,0.51069914]
[1753110151265,15.87593133,195.86,195.81,0.51069914]
[1753110151468,15.87593133,195.85,195.81,0.51069914]
[1753110151691,15.87593133,195.86,195.81,0.51069914]
[1753110151867,15.87593133,195.88,195.83,26.0]
[1753110152075,15.87593133,195.89,195.84,0.71]
[1753110152486,15.87593133,195.92,195.86,15.87593133]
[1753110152790,15.87593133,195.92,195.87,0.5105427]
[1753110152990,0.06,195.94,195.91,15.87593133]
[1753110153176,0.06,195.94,195.89,26.0]
[1753110153177,0.06,195.94,195.93,15.87593133]
[1753110153376,0.06,195.94,195.92,40.92041241]
[1753110153569,0.06,195.94,195.93,15.87593133]
[1753110153890,0.06,195.94,195.93,0.71]
[1753110154275,0.06,195.94,195.93,15.87593133]
[1753110154596,0.06,195.94,195.93,33.3706153]
[1753110155089,26.387885,196.0,195.96,26.0]
[1753110155297,26.387885,196.0,195.99,26.0]
[1753110155877,26.387885,196.0,195.99,42.58593133]
[1753110156077,26.387885,196.0,195.99,26.0]
[1753110156384,26.387885,196.0,195.99,47.68823246]
[1753110156582,26.387885,196.0,195.99,64.47291643]
[1753110156792,25.667885,196.0,195.99,64.98314654]
[1753110157175,25.667885,196.0,195.99,49.10721521]
[1753110157374,25.667885,196.0,195.99,64.98314654]
[1753110157770,2.251,196.05,195.99,64.98314654]
[1753110157771,2.251,196.05,196.04,16.78468397]
[1753110158085,2.251,196.05,196.04,98.83071527]
[1753110158291,2.251,196.05,196.04,104.34171506]
[1753110158471,0.72,196.18,196.08,26.0]
[1753110158673,19.076697,196.22,196.17,15.87593133]
[1753110158981,19.076697,196.22,196.21,32.6606153]
[1753110159179,19.076697,196.22,196.21,33.0706153]
[1753110159394,11.6,196.24,196.23,42.78468397]
[1753110159603,0.72,196.35,196.27,26.0]
[1753110159604,0.22,196.35,196.27,26.0]
[1753110159783,5.09087206,196.43,196.34,15.87593133]
[1753110159982,5.09087206,196.43,196.28,56.06540758]
[1753110159983,15.87593133,196.43,196.38,15.87593133]
[1753110160182,10.0,196.57,196.39,40.68919089]
[1753110160490,15.87593133,196.4,196.35,0.83129529]
[1753110160690,5.59040332,196.45,196.35,0.83129529]
[1753110160992,15.87593133,196.43,196.38,26.0]
[1753110161194,5.59042551,196.45,196.38,26.0]
[1753110161493,5.590409,196.45,196.39,0.83112597]
[1753110161677,6.310409,196.45,196.39,0.83112597]
[1753110161990,0.5,196.45,196.4,0.50916496]
[1753110162193,0.72,196.44,196.4,0.50916496]
[1753110162497,0.5,196.45,196.42,15.87593133]
[1753110162695,0.5,196.45,196.41,15.87593133]
[1753110162877,0.5,196.45,196.43,15.87593133]
[1753110163074,0.5,196.45,196.42,0.86837867]
[1753110163394,0.72,196.44,196.42,0.86837867]
[1753110163591,0.5,196.45,196.42,0.86837867]
[1753110163814,0.5,196.45,196.44,15.87593133]
[1753110164185,0.72,196.57,196.44,17.28468397]
[1753110164500,5.80729421,196.57,196.49,15.87593133]
[1753110164696,0.72,196.56,196.46,55.63593133]
[1753110165002,15.87593133,196.53,196.47,16.38491488]
[1753110165196,15.87593133,196.52,196.47,0.50898355]
[1753110165497,15.87593133,196.52,196.44,26.0]
[1753110165498,15.87593133,196.49,196.45,0.50903537]
[1753110165790,15.87593133,196.56,196.39,0.86851133]
[1753110165791,15.87593133,196.46,196.39,0.86851133]
[1753110165993,0.72,196.45,196.39,0.86851133]
[1753110166294,0.72,196.45,196.39,1.37770222]
[1753110166599,5.81045253,196.45,196.39,0.86851133]
[1753110166906,15.87593133,196.4,196.32,15.87593133]
[1753110167076,15.87593133,196.4,196.22,35.48122416]
[1753110167077,15.87593133,196.33,196.17,0.51]
[1753110167390,17.81633697,196.45,196.3,15.87593133]
[1753110167391,0.72,196.37,196.3,15.87593133]
[1753110167609,0.72,196.37,196.31,16.38532973]
[1753110167807,0.5093465,196.44,196.35,15.87593133]
[1753110167808,0.72,196.44,196.35,15.87593133]
[1753110167988,5.09045253,196.45,196.38,15.87593133]
[1753110168186,5.81004667,196.47,196.37,15.87593133]
[1753110168407,15.87593133,196.4,196.37,0.50924275]
[1753110168600,15.87593133,196.38,196.27,40.56950221]
[1753110168909,1.2293465,196.39,196.29,15.87593133]
[1753110169085,1.2293465,196.39,196.27,40.56950221]
[1753110169086,0.72,196.39,196.32,15.87593133]
[1753110169291,15.87593133,196.39,196.33,16.38527783]
[1753110169505,0.72,196.42,196.33,16.38527783]
[1753110169506,15.87593133,196.38,196.33,0.5093465]
[1753110170009,15.87593133,196.34,196.26,0.50952817]
[1753110170205,0.5093465,196.41,196.29,0.86895379]
[1753110170401,10.0,196.45,196.29,0.86895379]
[1753110170402,15.87593133,196.36,196.31,15.87593133]
[1753110170606,0.72,196.36,196.31,15.87593133]
[1753110170904,15.87593133,196.38,196.32,16.38530378]
[1753110171091,5.09164969,196.4,196.3,0.50942435]
[1753110171290,15.87593133,196.37,196.32,15.87593133]
[1753110171494,16.59593133,196.36,196.3,16.38535568]
[1753110171813,40.06,196.45,196.33,15.87593133]
[1753110171814,16.59593133,196.39,196.33,15.87593133]
[1753110171993,16.59593133,196.39,196.34,0.50932056]
[1753110172310,0.72,196.39,196.34,0.50932056]
[1753110172493,15.87593133,196.4,196.34,16.38525189]
[1753110172704,15.87593133,196.39,196.34,0.50932056]
[1753110172903,0.72,196.4,196.34,0.50932056]
[1753110172904,15.87593133,196.37,196.34,0.50932056]
[1753110173110,16.59593133,196.37,196.32,16.38530378]
[1753110173415,16.59593133,196.37,196.33,15.87593133]
[1753110173416,0.72,196.37,196.33,15.87593133]
[1753110173620,15.87593133,196.35,196.29,17.25433542]
[1753110173824,0.5093465,196.42,196.31,15.87593133]
[1753110174019,0.5093465,196.42,196.29,0.86895379]
[1753110174020,15.87593133,196.35,196.29,0.86895379]
[1753110174207,15.87593133,196.35,196.3,0.50942435]
[1753110174531,15.87593133,196.31,196.29,0.86895379]
[1753110174696,17.10527783,196.3,196.29,0.86895379]
[1753110175115,0.72,196.3,196.29,0.86895379]
[1753110175313,16.59593133,196.3,196.29,0.86895379]
[1753110176420,21.69017483,196.3,196.29,0.86895379]
[1753110176621,38.13545266,196.3,196.29,1e-08]
[1753110176835,50.87106142,196.3,196.13,16.38579723]
[1753110177160,50.87106142,196.3,196.17,15.87593133]
[1753110177161,15.87593133,196.23,196.17,15.87593133]
[1753110177327,15.87593133,196.23,196.18,0.50973595]
[1753110177720,15.87593133,196.24,196.18,16.38566728]
[1753110177921,15.87593133,196.26,196.2,15.87593133]
[1753110178124,0.06,196.3,196.23,15.87593133]
[1753110178358,15.87593133,196.27,196.22,15.87593133]
[1753110178643,0.5693465,196.3,196.21,0.50965801]
[1753110178644,15.87593133,196.25,196.21,0.50965801]
[1753110178946,0.5693465,196.3,196.21,15.87593133]
[1753110178947,0.06,196.3,196.21,15.87593133]
[1753110179241,15.87593133,196.29,196.23,15.87593133]
[1753110179435,15.87593133,196.28,196.23,15.87593133]
[1753110179636,0.72,196.27,196.22,0.50963204]
[1753110179816,16.59593133,196.27,196.22,0.50963204]
[1753110180020,0.06,196.3,196.23,15.87593133]
[1753110180238,15.87593133,196.28,196.23,15.87593133]
[1753110180438,5.15425784,196.3,196.2,0.71998971]
[1753110180439,0.72,196.27,196.2,21.69275831]
[1753110180650,0.06,196.3,196.26,15.87593133]
[1753110180829,0.06,196.3,196.27,0.50950221]
[1753110181015,0.06,196.3,196.24,15.87593133]
[1753110181217,15.93593133,196.3,196.25,16.38548547]
[1753110181443,0.06,196.3,196.27,15.87593133]
[1753110181643,0.06,196.3,196.29,15.87593133]
[1753110182032,0.06,196.3,196.29,16.57593133]
[1753110182327,0.06,196.3,196.29,22.17988466]
[1753110183262,0.06,196.3,196.29,21.97988466]
[1753110183668,0.06,196.3,196.29,22.67988466]
[1753110184072,1e-08,196.3,196.29,22.67988466]
[1753110184364,15.87593133,196.44,196.29,60.88865738]
[1753110184587,52.58264099,196.51,196.29,60.88865738]
[1753110184588,2.65692406,196.63,196.43,31.17593133]
[1753110184742,0.72,196.71,196.62,15.87593133]
[1753110185057,0.72,196.74,196.69,15.87593133]
[1753110185240,5.08078447,196.82,196.7,15.87593133]
[1753110185434,5.08078447,196.82,196.63,0.50856939]
[1753110185435,0.72,196.77,196.71,15.87593133]
[1753110185635,0.72,196.77,196.59,66.20802972]
[1753110185636,15.87593133,196.78,196.72,16.38426805]
[1753110185835,0.72,196.8,196.67,0.7]
[1753110186064,0.72,196.8,196.69,15.87593133]
[1753110186234,0.72,196.8,196.72,15.87593133]
[1753110186435,0.72,196.8,196.63,1.20856939]
[1753110186436,5.08155902,196.79,196.71,15.87593133]
[1753110186662,15.87593133,196.75,196.69,15.87593133]
[1753110187042,0.72,196.77,196.69,15.87593133]
[1753110187248,15.87593133,196.76,196.7,15.87593133]
[1753110187453,5.08126132,196.81,196.73,15.87593133]
[1753110187641,0.72,196.82,196.74,0.50828504]
[1753110187836,5.79993863,196.86,196.77,15.87593133]
[1753110188037,5.79993863,196.86,196.74,0.50828504]
[1753110188038,15.87593133,196.84,196.78,16.38411305]
[1753110188269,0.72,196.86,196.78,0.50818172]
[1753110188472,5.79887865,196.9,196.8,15.52663133]
[1753110188659,15.87593133,196.81,196.75,15.87593133]
[1753110188850,0.72,196.85,196.76,15.87593133]
[1753110189157,15.87593133,196.84,196.78,15.87593133]
[1753110189353,15.87593133,196.86,196.8,15.87593133]
[1753110189558,0.72,196.95,196.84,15.87593133]
[1753110189733,15.87593133,196.94,196.88,15.87593133]
[1753110189943,0.72,196.95,196.89,16.38382914]
[1753110190169,0.72,196.95,196.84,0.7]
[1753110190375,15.87593133,196.94,196.88,15.87593133]
[1753110190549,5.07768863,196.94,196.88,15.87593133]
[1753110190950,0.8857,196.96,196.91,15.87593133]
[1753110191177,0.8857,196.96,196.92,15.87593133]
[1753110191373,0.8857,196.96,196.93,15.87593133]
[1753110192258,0.8857,196.96,196.94,1.20776886]
[1753110192457,14.925371,197.0,196.95,37.52929348]
[1753110192758,14.925371,197.0,196.96,0.8577173]
[1753110192962,14.925371,197.0,196.99,15.87593133]
[1753110193170,14.925371,197.0,196.99,16.73357131]
[1753110194083,14.925371,197.0,196.93,7.04304863]
[1753110194084,14.925371,197.0,196.95,0.35]
[1753110194259,14.925371,197.0,196.99,15.87593133]
[1753110195084,14.925371,197.0,196.96,0.5077173]
[1753110195264,35.69607276,197.0,196.97,0.50769152]
[1753110195461,20.77070176,196.99,196.97,0.50769152]
[1753110195985,14.925371,197.0,196.97,0.50769152]
[1753110196186,14.925371,197.0,196.94,20.77070176]
[1753110196370,14.925371,197.0,196.99,20.77070176]
[1753110196570,14.925371,197.0,196.95,0.85774308]
[1753110196767,14.925371,197.0,196.95,21.27844484]
[1753110196982,20.77070176,196.98,196.95,0.50774308]
[1753110197290,20.72156617,197.0,196.93,20.77070176]
[1753110197596,14.925371,197.0,196.97,20.77070176]
[1753110197795,35.69607276,197.0,196.98,0.50766575]
[1753110198001,35.69607276,197.0,196.89,0.50789781]
[1753110198002,21.49070176,196.99,196.89,0.50789781]
[1753110198170,20.77070176,196.98,196.89,0.50789781]
[1753110198501,20.77070176,196.96,196.89,0.50789781]
[1753110198703,20.77070176,196.93,196.86,20.77070176]
[1753110198993,5.79743082,196.95,196.77,55.58]
[1753110198994,26.56813258,196.95,196.89,20.77070176]
[1753110199199,20.77070176,196.94,196.89,20.77070176]
[1753110199494,5.79743082,196.95,196.87,20.77070176]
[1753110199495,20.77070176,196.93,196.87,20.77070176]
[1753110199704,20.77070176,196.92,196.88,0.5079236]
[1753110199909,20.77070176,196.89,196.78,0.50818172]
[1753110200202,0.72,196.91,196.78,0.50818172]
[1753110200406,20.77070176,196.88,196.78,0.50818172]
[1753110200566,83.41816197,196.95,196.78,20.77070176]
[1753110200567,5.08052634,196.83,196.78,20.77070176]
[1753110200769,20.77070176,196.8,196.76,5.082886]
[1753110200966,0.72,196.79,196.7,0.5083884]
[1753110201497,5.08052634,196.83,196.78,20.77070176]
[1753110201665,5.08052634,196.83,196.71,0.85]
[1753110201666,0.72,196.82,196.79,0.5081559]
[1753110201871,0.72,196.82,196.76,20.77070176]
[1753110201872,20.77070176,196.8,196.71,0.5]
[1753110202190,5.08052634,196.83,196.76,20.77070176]
[1753110202492,20.77070176,196.83,196.77,0.50820755]
[1753110202680,20.77070176,196.82,196.77,0.50820755]
[1753110203071,40.34,196.9,196.77,0.50820755]
[1753110203072,12.69647346,196.91,196.79,20.77070176]
[1753110203294,20.77070176,196.86,196.8,21.27883184]
[1753110203594,0.72,196.9,196.81,20.77070176]
[1753110203768,0.72,196.9,196.8,0.50813008]
[1753110203769,20.77070176,196.87,196.82,0.50807844]
[1753110203965,0.72,196.95,196.86,20.77070176]
[1753110204176,0.72,196.95,196.87,0.5079494]
[1753110204375,21.49070176,196.95,196.89,20.77070176]
[1753110204573,20.77070176,196.9,196.81,0.50810426]
[1753110204785,20.77070176,196.83,196.78,0.50818172]
[1753110205113,20.77070176,196.79,196.66,0.50849181]
[1753110205298,0.72,196.78,196.7,20.77070176]
[1753110205501,20.77070176,196.72,196.66,0.50849181]
[1753110205714,21.49070176,196.72,196.66,21.27919357]
[1753110205889,0.72,196.77,196.71,20.77070176]
[1753110206093,0.72,196.77,196.73,20.77070176]
[1753110206291,20.77070176,196.78,196.74,0.50828504]
[1753110206491,0.72,196.86,196.75,20.77070176]
[1753110206706,5.08001016,196.85,196.68,0.5084401]
[1753110206992,0.72,196.84,196.68,21.27914186]
[1753110207406,20.77070176,196.75,196.69,0.5]
[1753110207706,20.77070176,196.75,196.7,0.5083884]
[1753110207909,17.78003556,196.85,196.7,0.5083884]
[1753110207910,21.49070176,196.74,196.7,0.5083884]
[1753110208110,21.49070176,196.73,196.63,0.82834843]
[1753110208312,20.77070176,196.74,196.64,0.85854353]
[1753110208525,40.56,196.83,196.71,20.77070176]
[1753110208727,40.56,196.83,196.72,0.50833672]
[1753110208728,20.77070176,196.76,196.72,0.50833672]
[1753110209012,20.77070176,196.75,196.68,20.77070176]
[1753110209222,20.77070176,196.74,196.69,0.50841425]
[1753110209390,20.77070176,196.74,196.63,5.91384334]